Cogmind - Beta 12 @@@ ROGUE MODE // 2023.11.23 @ 07:30:55 Player: Dosh Result: Destroyed by S-10 Pest with Light Assault Rifle Performance ------------- Evolutions (0) 0 Regions Visited (4) 800 Robots Destroyed (22) 110 Value Destroyed (476) 476 Prototype IDs (23) 460 Alien Tech Used (0) 0 Bonus (300) 300 TOTAL SCORE: 2146 Bonus ------- Aligned with FarCom 300 Cogmind --------- Core Integrity 0/250 Matter 234/300 Energy 125/125 System Corruption 0% Temperature Cool (0) Movement Treading (240) Ox1 Location -9/Mines Parts ------- > --- POWER (1) -------- Light Ion Engine > --- PROPULSION (2) --- Light Treads Light Treads > --- UTILITY (2) ------ High-capacity Storage Unit Signal Interpreter > --- WEAPON (2) ------- AWS/Gauss > --- INVENTORY (20) --- Ion Engine Light Ion Engine Wheel Wheel Small Storage Unit Targeting Computer Medium Laser Light Assault Rifle Battle Cannon Grenade Launcher Rocket Launcher Peak State ------------ > --- POWER ------------ Light Ion Engine > --- PROPULSION ------- Light Treads Light Treads > --- UTILITY ---------- High-capacity Storage Unit Signal Interpreter > --- WEAPON ----------- AWS/Gauss > --- INVENTORY -------- Ion Engine Light Ion Engine Wheel Wheel Small Storage Unit Targeting Computer Medium Laser Light Assault Rifle Battle Cannon Grenade Launcher [Rating: 22] Favorites ----------- Power Light Ion Engine Engine Light Ion Engine Propulsion Light Treads Treads Light Treads Utility High-capacity Storage Unit Storage High-capacity Storage Unit Processor Signal Interpreter Weapon Light Assault Rifle Ballistic Gun Light Assault Rifle Launcher Grenade Launcher Build | -11 -10 -10 -10 -9 ------- Run | Jun Mat Min Exi Min Slots Evolved . | . . . . . Power . | . . . . . Propulsion . | . . . . . Utility . | . . . . . Weapon . | . . . . . Parts Attached 23 | 6 14 2 1 . Power 4 | 1 2 1 . . Engine 4 | 1 2 1 . . Core . | . . . . . Reactor . | . . . . . Propulsion 7 | 2 5 . . . Treads 7 | 2 5 . . . Leg . | . . . . . Wheel . | . . . . . Hover . | . . . . . Flight . | . . . . . Utility 3 | 1 2 . . . Device . | . . . . . Storage 2 | 1 1 . . . Processor 1 | . 1 . . . Hackware . | . . . . . Protection . | . . . . . Artifact . | . . . . . Weapon 9 | 2 5 1 1 . Energy Gun . | . . . . . Energy Cannon . | . . . . . Ballistic Gun 7 | 2 4 . 1 . Ballistic Cannon . | . . . . . Launcher 2 | . 1 1 . . Special Weapon . | . . . . . Impact Weapon . | . . . . . Slashing Weapon . | . . . . . Piercing Weapon . | . . . . . Special Melee Weapon . | . . . . . Unidentified Prototypes . | . . . . . Parts Lost 7 | . 6 1 . . Power 2 | . 2 . . . Propulsion 1 | . 1 . . . Utility . | . . . . . Weapon 4 | . 3 1 . . Highest Loss Streak 5 | . 5 1 . . To Critical Strikes . | . . . . . Average Slot Usage (%) 96 | . 95 100 93 85 Engine 12 | . 11 14 14 14 Treads 27 | . 27 28 28 28 Storage 16 | . 19 14 14 14 Processor 11 | . 8 14 14 14 Ballistic Gun 18 | . 24 14 14 14 Launcher 7 | . 2 14 7 . Naked Turns . | . . . . . Heaviest Build 53 | 10 52 49 53 53 Greatest Support 40 | 40 40 40 40 40 Greatest Overweight (x) 2 | . 2 1 1 1 Average Overweight (x) . | . . 1 1 1 Largest Inventory Capacity 20 | 8 20 20 20 20 Average Capacity 19 | 7 19 20 20 20 Most Carried 11 | 4 9 8 10 11 Average Carried 7 | 1 6 7 8 10 Final Capacity 20 | 8 20 20 20 20 Final Carried 11 | 4 6 8 10 11 Class Distribution -------------------- 100% | Mutant Dominant Class ---------------- Mutant | -10/Materials Mutant | -10/Mines Mutant | -10/Exiles Mutant | -9/Mines Resources | -11 -10 -10 -10 -9 ----------- Run | Jun Mat Min Exi Min Matter Collected 528 | 204 322 2 . . Remotely . | . . . . . Salvage Created 507 | . 437 48 . 22 Parts 40 | . 34 2 . 4 Haulers Intercepted . | . . . . . Recyclers Shooed 1 | . 1 . . . Parts Field Recycled . | . . . . . Retrieved Matter . | . . . . . Parts Self-Destructed . | . . . . . Prevented . | . . . . . Kills | -11 -10 -10 -10 -9 ------- Run | Jun Mat Min Exi Min Combat Hostiles Destroyed 17 | . 13 2 . 2 Guns 14 | . 11 1 . 2 AOE 3 | . 2 1 . . Classes Destroyed 5 | . 5 . . . Worker 1 | . 1 . . . Builder 1 | . 1 . . . Watcher 3 | . 3 . . . Swarmer 8 | . 6 . . 2 Grunt 9 | . 7 2 . . Best Kill Streak 4 | . 4 2 . 2 Combat Bots Only 4 | . 4 2 . 2 Max Kills in Single Turn 1 | . 1 1 . 1 Gunslinging . | . . . . . Exploded 1 | . 1 1 . . Melee . | . . . . . Uniques/NPCs Destroyed . | . . . . . Combat | -11 -10 -10 -10 -9 -------- Run | Jun Mat Min Exi Min Damage Taken 1297 | . 1138 144 . 15 Core 250 | . 222 22 . 6 Absorbed by Shields . | . . . . . Regen/Repaired (Parts) 196 | . 196 . . . Core Remaining (%) 100 | 100 . . . . Volleys Fired 93 | . 87 6 . . Largest 2 | . 2 2 . . Hottest 50 | . 40 50 . . Shots Fired 166 | . 154 10 . 2 Gun 160 | . 152 6 . 2 Cannon . | . . . . . Launcher 6 | . 2 4 . . Special . | . . . . . Kinetic 160 | . 152 6 . 2 Thermal . | . . . . . Explosive 6 | . 2 4 . . Electromagnetic . | . . . . . Robot Hit Streak 7 | . 7 6 . 5 Robot Miss Streak 8 | . 8 1 . . Penetration Max . | . . . . . Secondary Targets 2 | . 2 . . . Max Gunslinging Chain 1 | . 1 . . . Autonomous 2 | . . . . 2 Shots Hit Robots 103 | . 94 7 . 2 Core Hits 45 | . 39 4 . 2 Critical Kills . | . . . . . Critical Parts Destroyed 1 | . 1 . . . Critical Strikes 1 | . 1 . . . Destroy 1 | . 1 . . . Melee Attacks . | . . . . . Impact . | . . . . . Slashing . | . . . . . Piercing . | . . . . . Sneak Attacks . | . . . . . Combat Hostiles . | . . . . . Follow-up Attacks . | . . . . . Damage Inflicted 1216 | . 940 208 . 68 Guns 879 | . 777 34 . 68 Cannons . | . . . . . Explosions 292 | . 128 164 . . Melee . | . . . . . Ramming 45 | . 35 10 . . Kinetic 879 | . 777 34 . 68 Thermal . | . . . . . Explosive 292 | . 128 164 . . Electromagnetic . | . . . . . Impact . | . . . . . Slashing . | . . . . . Piercing . | . . . . . Highest Corruption . | . . . . . Average Corruption . | . . . . . Corruption Purged . | . . . . . Corruption Blocked . | . . . . . Overload Shots . | . . . . . Overflow Damage 28 | . . 28 . . Projectiles . | . . . . . Explosions 28 | . . 28 . . Melee . | . . . . . Knockbacks . | . . . . . Impact . | . . . . . Kinetic . | . . . . . Secondary . | . . . . . Self-Inflicted Damage 32 | . 32 . . . Shots 1 | . 1 . . . Rammed 6 | . 5 1 . . Targets Rammed 7 | . 6 1 . . Kicked . | . . . . . Crushed 1 | . 1 . . . Highest Temperature 26 | . 26 19 . . Average Temperature 9 | . 9 11 . . Received Heat Transfer 432 | . 351 81 . . Siege Activations . | . . . . . Robots Corrupted . | . . . . . Combat Hostiles . | . . . . . Parts Fried . | . . . . . Impact Corruptions . | . . . . . Robots Melted . | . . . . . Combat Hostiles . | . . . . . Parts Melted . | . . . . . Heat Transferred . | . . . . . Parts Sabotaged . | . . . . . Parts Stolen . | . . . . . Parts Stripped . | . . . . . Power Chain Reactions . | . . . . . Missiles Intercepted . | . . . . . Alert | -11 -10 -10 -10 -9 ------- Run | Jun Mat Min Exi Min Peak Influence 150 | . 150 63 . 30 Initial 41 | . . 41 . . Average 37 | . 48 29 . . Maximum Alert Level . | . . . . . Low Security (%) 100 | 100 100 100 . 100 Level 1 . | . . . . . Level 2 . | . . . . . Level 3 . | . . . . . Level 4 . | . . . . . Level 5 . | . . . . . High Security . | . . . . . Max Security . | . . . . . Squads Dispatched 2 | . 2 . . . Investigation . | . . . . . Extermination . | . . . . . Reinforcement 2 | . 2 . . . Assault . | . . . . . Garrison . | . . . . . Intercept . | . . . . . Searches Triggered . | . . . . . Construction Impeded . | . . . . . Haulers Reinforced . | . . . . . Active Scanning Responses . | . . . . . Cargo Convoy Interrupts . | . . . . . Stealth | -11 -10 -10 -10 -9 --------- Run | Jun Mat Min Exi Min Distress Signals 2 | . 2 . . . Communications Jammed . | . . . . . Distress Signals . | . . . . . Times Spotted 38 | . 32 2 . 4 Peak Tracking Total 4 | . 4 2 . 3 Tactical Retreats 1 | . 1 . . . Traps | -11 -10 -10 -10 -9 ------- Run | Jun Mat Min Exi Min Traps Triggered 1 | . 1 . . . Indirectly . | . . . . . Trap Hack Attempts . | . . . . . Triggered . | . . . . . Disarmed . | . . . . . Reprogrammed . | . . . . . Reused . | . . . . . Traps Extracted . | . . . . . Installed . | . . . . . Triggered . | . . . . . Machines | -11 -10 -10 -10 -9 ---------- Run | Jun Mat Min Exi Min Machines Disabled 1 | . 1 . . . Max in Single Turn 1 | . 1 . . . Machines Repaired . | . . . . . Machines Sabotaged . | . . . . . Overloaded Fab Kills . | . . . . . Hacking | -11 -10 -10 -10 -9 --------- Run | Jun Mat Min Exi Min Machines Accessed 5 | . 4 . 1 . Terminals 3 | . 3 . . . Fabricators . | . . . . . Repair Stations 1 | . 1 . . . Recycling Units . | . . . . . Scanalyzers . | . . . . . Garrison Access . | . . . . . Total Hacks 15 | . 14 . 1 . Successful 7 | . 6 . 1 . Failed 8 | . 8 . . . Catastrophic . | . . . . . Database Lockouts . | . . . . . Manual 1 | . . . 1 . Terminals 9 | . 9 . . . Fabricators . | . . . . . Repair Stations 5 | . 5 . . . Recycling Units . | . . . . . Scanalyzers . | . . . . . Garrison Access . | . . . . . Terminal Hacks 3 | . 2 . 1 . Alert Level 2 | . 2 . . . EX-Prototype ID Bank 1 | . . . 1 . Fabricator Hacks . | . . . . . Repair Station Hacks 4 | . 4 . . . Scan Component 2 | . 2 . . . Repair 2 | . 2 . . . Recycling Unit Hacks . | . . . . . Scanalyzer . | . . . . . Garrison Access Hacks . | . . . . . Unauthorized Hacks . | . . . . . Terminals . | . . . . . Fabricators . | . . . . . Repair Stations . | . . . . . Recycling Units . | . . . . . Scanalyzers . | . . . . . Garrison Access . | . . . . . Data Cores Recovered . | . . . . . Used . | . . . . . Hacking Detections 3 | . 3 . . . Full Trace Events 1 | . 1 . . . Feedback Events . | . . . . . Feedback Blocked . | . . . . . Robot Schematics Acquired . | . . . . . Robots Built . | . . . . . Authchips . | . . . . . Time . | . . . . . Total Robot Build Rating . | . . . . . Part Schematics Acquired . | . . . . . Parts Built . | . . . . . Authchips . | . . . . . Time . | . . . . . Total Part Build Rating . | . . . . . Parts Repaired 2 | . 2 . . . Time 52 | . 52 . . . Parts Recycled . | . . . . . Recycled Matter . | . . . . . Retrieved Matter . | . . . . . Retrieved Components . | . . . . . Parts Scanalyzed . | . . . . . Part Schematics Acquired . | . . . . . Parts Damaged . | . . . . . Bothacking | -11 -10 -10 -10 -9 ------------ Run | Jun Mat Min Exi Min Used RIF Installer . | . . . . . Robots Hacked . | . . . . . Non-combat . | . . . . . Combat . | . . . . . Robot Hacks Applied . | . . . . . Relay Couplers Released . | . . . . . Fabnet Peak Effective % . | . . . . . Robots Rewired . | . . . . . Allies Hacked . | . . . . . Hacks Repelled . | . . . . . Allies | -11 -10 -10 -10 -9 -------- Run | Jun Mat Min Exi Min Total Allies . | . . . . . Largest Group . | . . . . . Highest-Rated Group . | . . . . . Highest-Rated Ally . | . . . . . Total Orders . | . . . . . Ally Attacks . | . . . . . Total Damage . | . . . . . Kills . | . . . . . Allies Corrupted . | . . . . . Allies Melted . | . . . . . Intel | -11 -10 -10 -10 -9 ------- Run | Jun Mat Min Exi Min Robot Analysis Total . | . . . . . Derelict Logs Recovered 1 | . . 1 . . Drone Launches . | . . . . . Drone Recoveries . | . . . . . Exploration | -11 -10 -10 -10 -9 ------------- Run | Jun Mat Min Exi Min Turns Passed 3569 | 85 1574 1249 517 144 Spaces Moved 1371 | 47 537 512 215 60 Core 2 | 2 . . . . Treads 1369 | 45 537 512 215 60 Legs . | . . . . . Wheels . | . . . . . Hover . | . . . . . Flight . | . . . . . Fastest Speed 50 | 50 160 240 240 240 Average Speed 235 | 155 236 240 240 240 Slowest Speed 320 | 160 320 240 240 240 Overloaded Moves . | . . . . . Propulsion Burnouts . | . . . . . Robots Hopped . | . . . . . Cave-ins Triggered . | . . . . . Exploration Rate (%) 52 | 4 74 99 60 27 Regions Visited 4 Branch Regions 3 Pre-discovered Areas . | . . . . . Known Exits Taken 3 | . 1 1 1 . Unknown Exits Taken 1 | 1 . . . . Scrap Searched 1 | . . 1 . . Spaces Dug . | . . . . . Terrain Destroyed 54 | . 14 39 . 1 Melee . | . . . . . Projectile 1 | . . . . 1 AOE 53 | . 14 39 . . Terrain Rammed . | . . . . . Walls Destroyed . | . . . . . Machines Disabled . | . . . . . Actions | -11 -10 -10 -10 -9 --------- Run | Jun Mat Min Exi Min Total 1561 | 56 705 522 217 61 Wait 57 | . 57 . . . Move 1367 | 46 536 511 214 60 Hop . | . . . . . Pick Up 11 | 4 4 2 . 1 Fast Attach 16 | 6 9 . 1 . Attach 5 | . 4 1 . . Detach 3 | . 1 . 2 . Swap 2 | . 1 1 . . Drop . | . . . . . Fire 93 | . 87 6 . . Melee . | . . . . . Ram . | . . . . . Kick . | . . . . . Crush 7 | . 6 1 . . Escape Stasis . | . . . . . Rewire . | . . . . . Trap . | . . . . . Miscellaneous . | . . . . . Route ------- -11/Junkyard -10/Materials (discovered 4 exits: *Mat x3 / *Min) -10/Mines (discovered 3 exits: *Mat x2 / *Exi) -10/Exiles -9/Mines History --------- Turn | Location | Event 12 | -11/Junkyard | Discovered new exit (range 15) 86 | -11/Junkyard | Entered Materials 300 | -10/Materials | Build established: Mutant 495 | -10/Materials | Discovered new exit (range 12) 643 | -10/Materials | Discovered new exit (range 8) 841 | -10/Materials | Discovered new exit (range 11) 863 | -10/Materials | Identified exit to Materials 1252 | -10/Materials | Repaired Lgt. Treads 1280 | -10/Materials | Repaired Lgt. Treads 1326 | -10/Materials | Core integrity fell below 50% 1362 | -10/Materials | Core integrity fell below 20% 1390 | -10/Materials | Lost 5 parts (1p1n3w) 1425 | -10/Materials | Discovered exit to Materials (range 14) 1658 | -10/Materials | Identified exit to Mines 1660 | -10/Materials | Entered Mines 1679 | -10/Mines | YI-UF0 nonchalantly dropped a Grenade Launcher on the ground 1837 | -10/Mines | Discovered exit to Materials (range 6) 1958 | -10/Mines | Learned Materials garrison access intel 2105 | -10/Mines | Discovered exit to Materials (range 8) 2588 | -10/Mines | A weapon hastily lodged in a ceiling crevice suddenly fell to the ground 2899 | -10/Mines | Deemed a non-threat by the Exiles lab entrance 2899 | -10/Mines | Discovered new exit (range 5) 2906 | -10/Mines | Identified exit to Exiles 2909 | -10/Mines | Entered Exiles 2969 | -10/Exiles | Met 8R-AWN 3008 | -10/Exiles | Met EX-HEX 3077 | -10/Exiles | Met EX-BIN 3106 | -10/Exiles | Aligned with FarCom system 3109 | -10/Exiles | Given EX-Vault access code 3164 | -10/Exiles | Opened EX-Vault 3186 | -10/Exiles | Found AWS/Gauss 3243 | -10/Exiles | Warned to stay clear of 0b10 Research branches 3318 | -10/Exiles | Met EX-DEC 3402 | -10/Exiles | Discovered new exit (range 11) 3423 | -10/Exiles | Identified exit to Mines 3426 | -10/Exiles | Left Exiles lab with AWS/Gauss 3426 | -10/Exiles | Entered Mines 3433 | -9/Mines | Received a Rocket Launcher from a helpful Derelict 3570 | -9/Mines | Destroyed by S-10 Pest with Light Assault Rifle Last Messages --------------- were you, so I'm going to lend you mine." 03433_ DZ-BIW(g) slips back into the shadows. 03436_ Acquired Rocket Launcher. 03511_ T-07 Excavator is excavating. 03520_ U-05 Engineer lays Concrete. 03524_ T-07 Excavator is excavating. 03524_ U-05 Engineer lays Concrete. 03529_ U-05 Engineer builds a Wall. 03541_ U-05 Engineer lays Concrete. 03542_ T-07 Excavator is excavating. 03542_ U-05 Engineer lays Concrete. 03543_ U-05 Engineer builds a Wall. 03546_ T-07 Excavator is excavating. 03548_ U-05 Engineer lays Concrete. 03549_ U-05 Engineer builds a Wall. 03550_ T-07 Excavator is excavating. 03555_ U-05 Engineer lays Concrete. 03568_ S-10 Pest destroyed. 03570_ Slug penetrates Wall. 03570_ S-10 Pest destroyed. Map ----- +----------------------------------------------------+ | ????????????????????????????????????????????????? | | ????????????????????????????????????????????????? | | ????????????????????????????????????????????????? | | ????????????????????????????????????????????????? | | ????????????????????????????????????????????????? | | ????????????????????????????????????????????????? | | ???????????#####????????????????????????????????? | | ??????????## ####?????????????????????????????? | | ??????????# ##????????????????????????????? | | ??????????# ###??????????????????????????? | | ??????????# ##?????????????????????????? | | ??????????# ###?? #???????????????????? | | ???????????# """ ?? #???????????????????? | | ???????????# """ #????s%#???????????????????? | | ???????????# """ ##???? #???????????????????? | | ???????????# #?????s ##??????????????????? | | ??????????## #?????%= ##?????????????????? | | ?????# #### ##????#* ##????????????????? | | ?????# #?????; ##???????????????? | | ?????# ##??## ######??????????? | | ?????## ## #### ???????????? | | ??????####?## ## ????????????? | | ???????????## #???????????????? | | ??????????## #????????????????? | | ??????????# ##????????????????? | | ??????????# @ ###???????????????? | | ??????????# #??????????? | | ??????????# ######???????????? | | ??????????## ### ##????????????????? | | ???????????##### #?## #####?????????????????? | | ???????????????# #??######?????????????????????? | | ???????????????# ####??????????????????????????? | | ??????????????## ##?????????????????????????? | | ?????????????## ##????????????????????????? | | ?????????????# ##???????????????????????? | | ?????????????# #???????????????????????? | | ?????????????# #???????????????????????? | | ?????????????# ##???????????????????????? | | ?????????????# ##????????????????????????? | | ?????????????# ##?????????????????????????? | | ?????????????## ##??????????????????????????? | | ??????????????# ##???????????????????????????? | | ?????????????## #????????????????????????????? | | ????????????## ##????????????????????????????? | | ????????????# ##?????????????????????????????? | | ???????????## ##??????????????????????????????? | | ??????????## #???????????????????????????????? | | ??????????# #???????????????????????????????? | | ???????#### #???????????????????????????????? | | ???????# #???????????????????????????????? | +----------------------------------------------------+ Best States ------------- Heat Dissipation 25 Energy Generation 10 Energy Capacity 250 Matter Stores 300 Matter Capacity 300 Sight Range 16 Terrain Scan Density 10 Evasion (%) 40 Recoil Reduction 2 Item Schematics ----------------- None Robot Schematics ------------------ None Fabricated ------------ Nothing Alien Tech Used ----------------- None Achievements -------------- None Challenges ------------ None Game ------ Seed FocalCommDetonator Manual? 0 Play Time 00:09:37 Cumulative 18.5 hours Start 2023.11.23 @ 07:21:32 End 2023.11.23 @ 07:30:55 Sessions 1 Manual Loads 0 Difficulty Rogue Special Mode None Game No. 41 Rogue 41 Adventurer 0 Explorer 0 Win Type - Total 0 Types 0/0/0/0/0/0/0/0/0 Lore% 23 Gallery% 24 Achievement% 20 Wizard Run 0 Options --------- ASCII 0 Keyboard 1 Movement Numpad Keybinds 0 Fullscreen 2 Font 18/SmallcapsGlow Map View 76x50 Tactical HUD 1 Map Filters NONE Filters NONE Steam 1 RUN: 803b2d58-2c09-4968-a41c-bd03e3084e38